bitfinex/quotes_BTCUSD_20260215
["timestamp","ask_amount","ask_price","bid_price","bid_amount"]
[1771154351781,0.0002816,70494.0,70484.0,0.13427667]
[1771154352602,0.0004,70496.0,70484.0,0.13427667]
[1771154353306,0.0004,70496.0,70488.0,4.5e-05]
[1771154355307,0.0004,70496.0,70484.0,0.13427667]
[1771154355702,0.0004,70496.0,70481.0,4.859631]
[1771154355936,0.0004,70496.0,70481.0,2.6654]
[1771154356145,0.02539999,70496.0,70481.0,1.7378]
[1771154356362,0.02499999,70495.0,70481.0,1.5143]
[1771154356799,0.02499999,70495.0,70481.0,1.2848]
[1771154357912,0.02499999,70495.0,70482.0,0.0002]
[1771154358089,0.02499999,70495.0,70482.0,0.34]
[1771154358651,0.02499999,70495.0,70482.0,0.33985135]
[1771154358859,0.02499999,70495.0,70482.0,0.32055091]
[1771154359268,0.02499999,70495.0,70482.0,0.32155091]
[1771154363290,0.02499999,70495.0,70490.0,4e-05]
[1771154363498,0.02499999,70494.0,70490.0,4e-05]
[1771154363722,0.02499999,70493.0,70490.0,4e-05]
[1771154363929,0.0037083,70493.0,70490.0,4e-05]
[1771154364142,0.02401845,70494.0,70482.0,0.32129364]
[1771154364323,0.0005186,70495.0,70482.0,0.32029364]
[1771154364769,0.0005186,70495.0,70482.0,0.32049364]
[1771154365012,0.0009186,70495.0,70482.0,0.32049364]
[1771154365230,0.02463342,70491.0,70482.0,0.32049364]
[1771154365640,0.02515202,70491.0,70482.0,0.32049364]
[1771154365896,0.02515202,70491.0,70482.0,0.32149364]
[1771154367365,0.02515202,70491.0,70482.0,0.32049364]
[1771154367747,0.12279885,70490.0,70482.0,0.32049364]
[1771154368338,0.12279885,70490.0,70482.0,0.32149364]
[1771154368766,0.12331745,70490.0,70482.0,0.32149364]
[1771154368965,0.12331745,70490.0,70482.0,0.32049364]
[1771154370406,0.12331745,70490.0,70482.0,0.32019639]
[1771154370833,0.12331745,70490.0,70482.0,0.32004775]
[1771154373610,0.12331745,70490.0,70480.0,0.09095406]
[1771154373818,0.12503216,70490.0,70480.0,0.09095406]
[1771154374827,0.00223331,70490.0,70480.0,0.09095406]
[1771154375883,0.0005186,70490.0,70480.0,0.09095406]
[1771154377425,0.0005186,70490.0,70480.0,0.09080542]
[1771154378034,0.0005186,70490.0,70480.0,0.0906568]
[1771154382713,0.0005186,70490.0,70480.0,0.11483116]
[1771154383534,0.0005186,70490.0,70480.0,0.0906568]
[1771154384076,0.00171471,70487.0,70474.0,0.00025]
[1771154384465,0.00171471,70487.0,70474.0,0.00010136]
[1771154384692,0.00171471,70487.0,70473.0,0.33975274]
[1771154384887,0.00210731,70487.0,70473.0,0.33975274]
[1771154385088,0.00210731,70487.0,70473.0,0.32047521]
[1771154386380,0.00210731,70487.0,70474.0,0.001]
[1771154386933,0.00210731,70487.0,70473.0,0.32067521]
[1771154387137,0.00210731,70487.0,70473.0,0.32167521]
[1771154387354,0.00210731,70487.0,70473.0,0.34581785]
[1771154387756,0.00210731,70487.0,70473.0,0.34481785]
[1771154389747,0.0003926,70487.0,70473.0,0.34581785]
[1771154390155,0.0003926,70487.0,70473.0,0.32067521]
[1771154390354,0.0003926,70487.0,70474.0,0.02414264]
[1771154391188,0.00210731,70487.0,70473.0,0.32067521]
[1771154391389,0.00352169,70487.0,70473.0,0.32052657]
[1771154393240,4e-05,70480.0,70473.0,0.32048657]
[1771154393447,0.0003926,70487.0,70474.0,0.02414264]
[1771154397713,0.13354571,70486.0,70470.0,0.0002]
[1771154397922,0.13213133,70482.0,70447.0,0.11498264]
[1771154398125,0.00180698,70486.0,70431.0,0.000126]
[1771154398126,0.13213133,70477.0,70431.0,0.090966]
[1771154398352,0.16216,70481.0,70410.0,0.000126]
[1771154398353,0.00435484,70447.0,70410.0,0.000126]
[1771154398567,0.00435484,70447.0,70400.0,0.09304]
[1771154398568,0.00435484,70447.0,70413.0,0.0002188]
[1771154398569,0.13213133,70445.0,70413.0,0.0002188]
[1771154398707,0.00171471,70442.0,70413.0,0.02436144]
[1771154398907,0.31116,70446.0,70413.0,0.02436144]
[1771154398908,0.00171471,70440.0,70413.0,0.02436144]
[1771154399103,0.13213133,70437.0,70413.0,0.02436144]
[1771154399368,0.00171471,70434.0,70413.0,0.02479309]
[1771154399564,0.31116,70446.0,70413.0,0.02464445]
[1771154399565,0.00171471,70432.0,70413.0,0.02464445]
[1771154399873,0.00171471,70431.0,70413.0,0.02464445]
[1771154400252,0.00171471,70446.0,70414.0,4.859631]
[1771154400468,0.00171471,70446.0,70413.0,0.00150181]
[1771154400469,0.09084,70444.0,70418.0,0.12984331]
[1771154400795,0.09084,70444.0,70423.0,0.02414264]
[1771154401022,0.09106824,70444.0,70425.0,0.02414264]
[1771154401213,0.09106824,70444.0,70427.0,0.02414264]
[1771154401332,0.00022824,70444.0,70429.0,0.02414264]
[1771154401540,0.00740183,70447.0,70433.0,0.02414264]
[1771154401759,0.00740183,70447.0,70435.0,0.12984331]
[1771154401960,0.00740183,70447.0,70436.0,0.02414264]
[1771154402809,0.00740183,70447.0,70436.0,0.02457429]
[1771154403251,0.00740183,70447.0,70421.0,0.12984331]
[1771154403473,0.00740183,70447.0,70426.0,0.12984331]
[1771154403624,0.00740183,70447.0,70429.0,4.859631]
[1771154403847,0.00740183,70447.0,70433.0,4.859631]
[1771154404050,0.00740183,70447.0,70436.0,0.12984331]
[1771154404244,0.0002359,70454.0,70423.0,0.03234816]
[1771154404528,0.0002359,70454.0,70427.0,3.0246]
[1771154404690,0.0002359,70454.0,70431.0,0.12984331]
[1771154404872,0.0002359,70454.0,70442.0,0.02351821]
[1771154405069,0.0002359,70454.0,70442.0,0.15336152]
[1771154405296,0.0002359,70454.0,70443.0,0.02351821]
[1771154406107,0.0002359,70454.0,70443.0,0.02336956]
[1771154406519,0.0002359,70454.0,70443.0,0.0234988]
[1771154407965,0.0002359,70454.0,70444.0,0.02351821]
[1771154408302,4e-05,70450.0,70444.0,0.02339821]
[1771154410471,0.0002359,70454.0,70444.0,0.13084331]
[1771154410664,0.0002359,70454.0,70445.0,0.02351821]
[1771154410866,0.0002359,70454.0,70445.0,0.15336152]
[1771154411078,0.0002359,70454.0,70444.0,0.001]
[1771154411699,0.00141438,70457.0,70443.0,0.00012924]
[1771154411918,0.09088,70465.0,70447.0,0.02351821]
[1771154412134,0.09088,70465.0,70449.0,0.02351821]
[1771154412343,0.0002359,70468.0,70452.0,0.12984331]
[1771154412542,0.0002359,70468.0,70455.0,0.02351821]
[1771154414612,0.0004,70465.0,70455.0,0.02351821]
[1771154415995,0.0004,70465.0,70449.0,0.02463541]
[1771154416751,0.0004,70465.0,70450.0,0.02463541]
[1771154422263,0.0004,70465.0,70450.0,0.12903658]
[1771154422460,0.0004,70465.0,70451.0,0.02463541]
[1771154423137,0.0004,70465.0,70454.0,0.12903658]
[1771154423354,0.0004,70465.0,70460.0,0.02463541]
[1771154425244,0.0004,70465.0,70460.0,0.12903658]
[1771154425446,0.0004,70465.0,70461.0,0.02463541]
[1771154426381,0.0002359,70468.0,70462.0,0.12903658]
[1771154426575,0.0002359,70468.0,70461.0,0.02463541]
[1771154427770,0.0002359,70468.0,70457.0,0.15367199]
[1771154427984,0.0004,70465.0,70457.0,0.15367199]
[1771154428859,0.0004,70465.0,70457.0,0.15467199]
[1771154429466,0.0004,70465.0,70457.0,0.15367199]
[1771154429675,0.0004,70465.0,70457.0,0.15467199]
[1771154430832,0.0004,70465.0,70450.0,0.00024]
[1771154431063,0.02493321,70465.0,70457.0,0.001]
[1771154431280,0.02453321,70459.0,70443.0,0.00012924]
[1771154431711,0.12872792,70457.0,70443.0,0.00012924]
[1771154431912,0.02453321,70456.0,70450.0,0.001]
[1771154432334,0.02453321,70456.0,70443.0,0.00012924]
[1771154432675,0.02449321,70456.0,70443.0,0.00112924]
[1771154433686,0.02449321,70456.0,70438.0,0.03649381]
[1771154433915,0.02462254,70456.0,70438.0,0.03649381]
[1771154434120,0.02462254,70456.0,70443.0,0.001]
[1771154434579,0.02453321,70454.0,70443.0,0.001]
[1771154434786,0.02453321,70454.0,70436.0,0.02463541]
[1771154434996,0.02453321,70454.0,70438.0,0.001]
[1771154435416,0.02453321,70454.0,70450.0,0.0002]
[1771154436054,0.00012933,70456.0,70450.0,0.0002]
[1771154437350,0.00012933,70456.0,70450.0,0.0012]
[1771154437775,0.00012933,70456.0,70450.0,0.0002]
[1771154438326,0.00012933,70456.0,70450.0,0.00012]
[1771154444675,0.02414983,70454.0,70450.0,0.00012]
[1771154448933,0.00012933,70456.0,70450.0,0.00012]
[1771154450768,0.00145438,70460.0,70450.0,0.00012]
[1771154450769,4e-05,70460.0,70450.0,0.00012]
[1771154450971,4e-05,70460.0,70451.0,0.16158367]
[1771154451783,4e-05,70460.0,70451.0,0.13679273]
[1771154452995,4e-05,70460.0,70450.0,0.00012]
[1771154453466,0.02414983,70459.0,70450.0,0.00012]
[1771154453897,0.12839298,70458.0,70442.0,0.0002]
[1771154454119,0.1269786,70457.0,70442.0,0.00032933]
[1771154454339,0.02414983,70456.0,70442.0,0.00032933]
[1771154454569,0.02414983,70455.0,70442.0,0.00032933]
[1771154454787,0.1269786,70454.0,70450.0,0.0002]
[1771154455003,0.02414983,70453.0,70450.0,0.0002]
[1771154458913,0.0004,70456.0,70450.0,0.0002]
[1771154461499,0.0004,70456.0,70442.0,0.13712206]
[1771154461700,0.0004,70456.0,70442.0,0.161913]
[1771154462178,0.0004,70456.0,70443.0,0.02479094]
[1771154462465,0.0004,70456.0,70446.0,0.13679273]
[1771154462886,0.0004,70456.0,70450.0,0.0002]
[1771154463287,0.02454983,70456.0,70450.0,0.0002]
[1771154464477,0.02492313,70456.0,70450.0,0.0002]
[1771154465676,0.1269786,70453.0,70442.0,0.00032933]
[1771154465887,0.02414983,70451.0,70442.0,0.00032933]
[1771154466344,0.02414983,70450.0,70442.0,0.00032933]
[1771154466477,0.02430533,70450.0,70442.0,0.00032933]
[1771154466948,0.02430533,70450.0,70435.0,0.0002]
[1771154467237,0.02414983,70448.0,70435.0,0.0002]
[1771154467637,0.02430533,70448.0,70435.0,0.0002]
[1771154467842,0.02430533,70448.0,70430.0,0.09258091]
[1771154468250,0.02439109,70448.0,70430.0,0.09258091]
[1771154469456,0.02439109,70448.0,70442.0,0.0002]
[1771154470404,0.02439109,70448.0,70430.0,0.07339894]
[1771154472035,0.02439109,70448.0,70429.0,5e-05]
[1771154472036,0.1269786,70447.0,70429.0,5e-05]
[1771154472217,0.02414983,70446.0,70429.0,5e-05]
[1771154472529,0.02430533,70446.0,70429.0,5e-05]
[1771154473961,0.02277461,70444.0,70429.0,5e-05]
[1771154474109,0.02277461,70440.0,70415.0,0.02344287]
[1771154474463,0.0001555,70446.0,70415.0,0.02344287]
[1771154474464,0.02277461,70436.0,70415.0,0.02344287]
[1771154474671,0.02277461,70442.0,70425.0,0.13053819]
[1771154475059,0.02277461,70442.0,70428.0,0.02344287]
[1771154475284,0.02277461,70442.0,70424.0,0.02344287]
[1771154476075,0.02277461,70442.0,70429.0,0.0002]
[1771154476862,0.15725022,70442.0,70429.0,0.0002]
[1771154477092,0.02277461,70441.0,70429.0,0.0002]
[1771154478485,0.02261112,70441.0,70429.0,0.0002]
[1771154479015,0.00141438,70440.0,70429.0,0.0002]
[1771154479214,0.02277461,70439.0,70429.0,0.0002]
[1771154480448,0.00141438,70438.0,70429.0,0.0002]
[1771154480648,0.02277461,70438.0,70429.0,0.0002]
[1771154481983,0.00141438,70437.0,70429.0,0.0002]
[1771154482185,0.02418899,70437.0,70429.0,0.0002]
[1771154482684,0.02402542,70437.0,70429.0,0.0002]
[1771154482904,0.02402542,70437.0,70421.0,0.0002]
[1771154482905,0.15850103,70437.0,70421.0,0.0002]
[1771154483123,0.02277461,70436.0,70421.0,0.0002]
[1771154483345,4e-05,70430.0,70421.0,0.00016]
[1771154483546,4e-05,70430.0,70429.0,0.0002]
[1771154483665,0.02281461,70430.0,70429.0,0.0002]
[1771154484107,4e-05,70430.0,70429.0,0.0002]
[1771154485901,0.00125081,70441.0,70429.0,0.0002]
[1771154486325,0.0001555,70443.0,70431.0,0.02344287]
[1771154486525,0.0001555,70443.0,70429.0,0.0002]
[1771154486526,0.0001555,70443.0,70434.0,0.13053819]
[1771154486799,0.0001555,70443.0,70435.0,0.02344287]
[1771154487315,0.0001555,70443.0,70436.0,0.13053819]
[1771154489078,0.0001555,70443.0,70436.0,0.15398106]
[1771154492260,0.02277461,70452.0,70437.0,0.02344287]
[1771154492466,0.02277461,70452.0,70438.0,0.15398106]
[1771154496079,0.02277461,70446.0,70413.0,0.02344287]
[1771154496285,0.00133657,70448.0,70413.0,0.02344287]
[1771154496286,0.13447561,70443.0,70414.0,1.0495]
[1771154496500,0.0074057,70428.0,70418.0,0.02344287]
[1771154496700,0.0074057,70428.0,70419.0,0.13053819]
[1771154497846,0.0074057,70428.0,70419.0,0.13153819]
[1771154498388,0.00658781,70428.0,70427.0,0.0002]
[1771154498593,0.0064242,70428.0,70419.0,0.13053819]
[1771154498796,0.00032712,70427.0,70419.0,0.13053819]
[1771154499035,0.0001635,70427.0,70419.0,0.0002]
[1771154499590,0.0001635,70427.0,70419.0,0.0012]
[1771154500021,0.0001635,70427.0,70419.0,0.0002]
[1771154500386,0.0001635,70427.0,70419.0,0.0012]
[1771154500838,0.0001635,70427.0,70419.0,0.0002]
[1771154501322,0.0001635,70427.0,70419.0,0.0012]
[1771154502124,0.0064242,70428.0,70419.0,0.0012]
[1771154502348,0.02277461,70433.0,70419.0,0.0012]
[1771154502547,0.02277461,70433.0,70419.0,0.0002]
[1771154503878,0.02277461,70433.0,70418.0,0.01721867]
[1771154504277,0.02277461,70433.0,70415.0,0.13053819]
[1771154504482,0.02402542,70433.0,70415.0,0.13053819]
[1771154505765,0.02402542,70433.0,70419.0,0.0002]
[1771154506976,0.02277461,70433.0,70419.0,0.0002]
[1771154508960,0.02261106,70433.0,70415.0,0.00404066]
[1771154509590,0.02244749,70433.0,70415.0,0.00404066]
[1771154510147,0.02481274,70431.0,70415.0,0.00404066]
[1771154510345,0.02481274,70429.0,70415.0,0.00404066]
[1771154510963,0.02481274,70429.0,70414.0,0.1257496]
[1771154512200,0.02481274,70425.0,70388.0,0.1259674]
[1771154512471,0.02481274,70421.0,70388.0,0.0002178]
[1771154512715,0.12439142,70416.0,70388.0,0.0002178]
[1771154512928,0.17424,70420.0,70388.0,0.0002178]
[1771154512929,0.02481274,70413.0,70388.0,0.0002178]
[1771154513125,0.02481274,70409.0,70388.0,0.1259674]
[1771154513349,0.02481274,70409.0,70390.0,0.1257496]
[1771154513556,0.02481274,70409.0,70392.0,0.1257496]
[1771154514155,0.02481274,70409.0,70392.0,0.13183536]
[1771154514380,0.02464914,70409.0,70392.0,0.13183536]
[1771154515607,0.02464914,70409.0,70392.0,0.13203536]
[1771154516162,0.02464914,70409.0,70403.0,5e-05]
[1771154516481,0.02464914,70409.0,70392.0,0.13303536]
[1771154516482,0.02464914,70409.0,70392.0,0.11378775]
[1771154516699,0.02464914,70409.0,70392.0,0.11278775]
[1771154518333,0.12439142,70409.0,70392.0,0.0012]
[1771154518499,0.02481274,70408.0,70392.0,0.0012]
[1771154518720,0.14920416,70408.0,70392.0,0.0002]
[1771154518930,0.02481274,70407.0,70392.0,0.0002]
[1771154519457,0.12439142,70404.0,70392.0,0.0002]
[1771154519648,0.12439142,70402.0,70392.0,0.0002]
[1771154519861,0.02481274,70401.0,70392.0,0.0002]
[1771154521402,0.02481274,70401.0,70388.0,0.00064962]
[1771154521403,0.02481274,70399.0,70388.0,0.00064962]
[1771154521607,0.12439142,70396.0,70388.0,0.00064962]
[1771154521822,0.02481274,70395.0,70388.0,0.00064962]
[1771154522988,0.02481274,70395.0,70388.0,0.00164962]
[1771154523200,0.00129081,70410.0,70384.0,0.0002]
[1771154523201,0.12439142,70394.0,70384.0,0.0002]
[1771154523370,0.16946258,70408.0,70384.0,0.00027358]
[1771154523371,0.02481274,70391.0,70384.0,0.00027358]
[1771154523985,0.12439142,70391.0,70388.0,0.0002]
[1771154524159,0.12439142,70390.0,70388.0,0.0002]
[1771154524365,0.02481274,70404.0,70388.0,0.0002]
[1771154524574,0.02481274,70404.0,70388.0,0.1259496]
[1771154524575,0.09092,70401.0,70388.0,0.1259496]
[1771154525184,0.11573274,70401.0,70388.0,0.0002]
[1771154526254,0.02481274,70401.0,70388.0,0.0002]
[1771154526477,0.02747166,70406.0,70389.0,0.13199896]
[1771154526708,0.02747166,70406.0,70388.0,0.0002]
[1771154526709,0.02481274,70405.0,70388.0,0.0002]
[1771154526914,0.02481274,70403.0,70388.0,0.0002]
[1771154527125,0.02481274,70401.0,70388.0,0.0002]
[1771154528347,0.02481274,70401.0,70388.0,0.13215896]
[1771154528348,4e-05,70390.0,70388.0,0.13215896]
[1771154528659,4e-05,70400.0,70388.0,0.13215896]
[1771154529425,4e-05,70400.0,70380.0,0.0002]
[1771154529426,0.12439142,70397.0,70380.0,0.0002]
[1771154529550,0.00129081,70400.0,70380.0,0.0002]
[1771154529551,0.02481274,70394.0,70380.0,0.0003296]
[1771154529751,0.12439142,70392.0,70380.0,0.0003296]
[1771154529963,0.02481274,70391.0,70380.0,0.0003296]
[1771154530724,0.14920416,70391.0,70380.0,0.0003296]
[1771154530879,0.02481274,70390.0,70380.0,0.0003296]
[1771154531840,0.02481274,70388.0,70380.0,0.0003296]
[1771154531974,0.12439142,70388.0,70380.0,0.0003296]
[1771154532170,0.02481274,70387.0,70380.0,0.0003296]
[1771154532887,0.29948,70396.0,70381.0,0.1257496]
[1771154533126,0.29948,70396.0,70382.0,0.02357582]
[1771154533312,0.32231201,70396.0,70382.0,0.02357582]
[1771154534121,0.29948,70396.0,70383.0,0.02480546]
[1771154534982,0.29948,70396.0,70382.0,0.0002]
[1771154534983,0.02408282,70395.0,70382.0,0.0002]
[1771154536754,4e-05,70400.0,70384.0,0.02480546]
[1771154536957,4e-05,70400.0,70387.0,0.13328154]
[1771154537158,4e-05,70400.0,70389.0,0.02480546]
[1771154537571,0.00129081,70400.0,70383.0,0.02480546]
[1771154537769,0.02283201,70397.0,70384.0,0.001]
[1771154537982,0.1250516,70394.0,70384.0,0.001]
[1771154538181,0.02283201,70393.0,70384.0,0.001]
[1771154538404,0.02283201,70393.0,70382.0,0.00025]
[1771154538656,0.02283201,70393.0,70383.0,0.001]
[1771154539738,0.00125081,70396.0,70383.0,0.001]
[1771154539887,4e-05,70400.0,70383.0,0.02580546]
[1771154540097,4e-05,70400.0,70384.0,0.02480546]
[1771154540378,0.00129081,70400.0,70384.0,0.02480546]
[1771154540578,0.02283201,70399.0,70384.0,0.02480546]
[1771154541132,0.02283201,70399.0,70384.0,0.02580546]
[1771154541728,0.02283201,70399.0,70384.0,0.02480546]
[1771154541907,0.02283201,70399.0,70384.0,0.001]
[1771154543111,0.02283201,70397.0,70382.0,0.00025]
[1771154543323,0.02283201,70395.0,70382.0,0.00021]
[1771154543645,0.02283201,70393.0,70384.0,0.001]
[1771154543970,0.00524353,70393.0,70382.0,0.00016]
[1771154544405,0.00524353,70393.0,70387.0,5e-05]
[1771154544616,0.02283201,70391.0,70382.0,0.00116]
[1771154544794,0.1250516,70391.0,70382.0,0.00016]
[1771154545003,0.1250516,70390.0,70382.0,0.00116]
[1771154545206,0.00129081,70400.0,70384.0,0.0002]
[1771154545410,0.1250516,70396.0,70384.0,0.0002]
[1771154545623,0.1250516,70394.0,70384.0,0.0002]
[1771154545826,0.02408282,70393.0,70384.0,0.0002]
[1771154550744,0.02408282,70393.0,70380.0,0.0003296]
[1771154552619,0.02408282,70393.0,70380.0,0.0013296]
[1771154553073,0.02408282,70393.0,70380.0,0.0003296]
[1771154556155,0.02408282,70393.0,70373.0,0.01618569]
[1771154556346,0.02408282,70393.0,70373.0,0.03406414]
[1771154557118,0.28172,70396.0,70376.0,0.01781714]
[1771154557348,0.09096,70397.0,70379.0,0.13328154]
[1771154557553,0.02283201,70398.0,70382.0,0.01781714]
[1771154557778,0.02283201,70398.0,70384.0,0.01781714]
[1771154558276,4e-05,70390.0,70384.0,0.01781714]
[1771154558406,0.02283201,70398.0,70384.0,0.01781714]
[1771154558818,0.0004,70399.0,70384.0,0.01781714]
[1771154559041,0.0004,70399.0,70386.0,0.15109868]
[1771154559252,0.0004,70399.0,70380.0,4e-05]
[1771154559253,0.0004,70399.0,70381.0,0.13328154]
[1771154559455,0.02323201,70399.0,70382.0,0.01781714]
[1771154564242,0.0004,70399.0,70385.0,0.13099741]
[1771154564472,0.0004,70399.0,70386.0,0.13099741]
[1771154564688,0.0004,70399.0,70387.0,0.01781714]
[1771154566254,0.00125081,70398.0,70384.0,5e-05]
[1771154566473,0.00860716,70399.0,70384.0,0.00130105]
[1771154566671,0.00860716,70399.0,70385.0,0.02347944]
[1771154567053,0.00844336,70399.0,70393.0,5e-05]
[1771154569084,0.00844336,70399.0,70385.0,0.02347944]
[1771154571485,4e-05,70400.0,70382.0,0.0002]
[1771154571486,0.00018,70391.0,70382.0,0.0002]
[1771154571677,0.02439769,70390.0,70382.0,0.0002]
[1771154572501,0.00018,70396.0,70384.0,0.13099741]
[1771154572747,0.00018,70396.0,70385.0,0.02101203]
[1771154574050,4e-05,70400.0,70385.0,0.02101203]
[1771154574261,0.02461769,70400.0,70385.0,0.02101203]
[1771154574517,0.0004,70399.0,70385.0,0.02101203]
[1771154575430,0.0004,70399.0,70384.0,0.13104741]
[1771154575431,0.16946258,70427.0,70399.0,0.0004]
[1771154575658,0.02457769,70416.0,70401.0,0.02101203]
[1771154576101,0.02457769,70411.0,70401.0,5e-05]
[1771154576777,0.00083159,70409.0,70401.0,5e-05]
[1771154577661,0.02457769,70419.0,70403.0,0.02101203]
[1771154577872,0.02457769,70419.0,70403.0,0.02107334]
[1771154578325,0.00018,70415.0,70403.0,0.02107334]
[1771154578747,0.00018,70415.0,70403.0,6.131e-05]
[1771154580936,0.00018,70415.0,70404.0,0.02101203]
[1771154581294,4e-05,70420.0,70403.0,6.131e-05]
[1771154581295,0.12699717,70414.0,70403.0,6.131e-05]
[1771154581499,0.02457769,70413.0,70403.0,6.131e-05]
[1771154581982,4e-05,70410.0,70398.0,0.0208958]
[1771154582198,0.00018,70404.0,70398.0,0.0208958]
[1771154582406,0.00016936,70410.0,70398.0,0.0208958]
[1771154582940,0.00056936,70410.0,70398.0,0.0208958]
[1771154583576,0.00056936,70410.0,70398.0,0.0209458]
[1771154587772,0.00056936,70410.0,70387.0,4.3078]
[1771154587773,0.02457769,70408.0,70387.0,4.3078]
[1771154587978,0.02457769,70408.0,70385.0,0.13099741]
[1771154588181,0.02457769,70408.0,70387.0,0.13099741]
[1771154588394,0.02457769,70408.0,70389.0,0.0208958]
[1771154588797,0.02457769,70408.0,70389.0,0.13099741]
[1771154588998,0.02457769,70408.0,70391.0,0.13099741]
[1771154589248,0.02457769,70408.0,70392.0,0.0208958]
[1771154591347,0.02457769,70408.0,70392.0,0.0218958]
[1771154591543,0.02497769,70408.0,70393.0,0.13099741]
[1771154591813,0.02497769,70408.0,70394.0,0.0208958]
[1771154592148,0.02497769,70408.0,70395.0,4.859631]
[1771154592149,0.0004,70408.0,70395.0,4.859631]
[1771154592355,0.0004,70408.0,70385.0,0.0002]
[1771154592356,0.00056936,70410.0,70398.0,0.0208958]
[1771154592658,0.00056936,70410.0,70399.0,0.0208958]
[1771154592858,0.00056936,70410.0,70400.0,0.13099741]
[1771154593060,0.00056936,70410.0,70401.0,0.0208958]
[1771154594410,0.00056936,70410.0,70401.0,0.0218958]
[1771154596467,0.00056936,70410.0,70401.0,0.001]
[1771154599379,0.02504862,70410.0,70401.0,0.001]
[1771154600158,0.02504862,70410.0,70396.0,0.0208958]
[1771154600356,0.02504862,70410.0,70401.0,0.001]
[1771154600779,0.02504862,70410.0,70396.0,0.0208958]
[1771154601002,0.02504862,70410.0,70398.0,0.0002]
[1771154601162,0.02504862,70410.0,70401.0,0.001]
[1771154601784,0.00056936,70410.0,70401.0,0.001]
[1771154602478,0.00056936,70410.0,70398.0,0.00729819]
[1771154603316,0.00056936,70410.0,70390.0,3.6501]
[1771154603457,0.00056936,70410.0,70387.0,0.1942]
[1771154603458,0.00056936,70410.0,70401.0,0.001]
[1771154604085,0.00056936,70410.0,70395.0,3.0712]
[1771154604270,0.00056936,70410.0,70395.0,2.7116]
[1771154604622,0.00056936,70410.0,70398.0,0.001]
[1771154605617,0.00056936,70410.0,70395.0,3.1196]
[1771154605816,0.00056936,70410.0,70395.0,2.7605]
[1771154606417,0.00056936,70410.0,70395.0,2.2893]
[1771154607285,0.00056936,70410.0,70395.0,2.2753]
[1771154607408,0.00056936,70410.0,70395.0,0.2962]
[1771154607607,0.00056936,70410.0,70396.0,0.3744]
[1771154607608,0.02556935,70410.0,70396.0,0.3744]
[1771154608264,0.02556935,70410.0,70396.0,0.3037]
[1771154608525,0.02556935,70410.0,70396.0,0.1364]
[1771154608694,0.02556935,70410.0,70393.0,1.0776]
[1771154609122,0.02556935,70410.0,70396.0,0.001]
[1771154609406,0.02556935,70410.0,70398.0,0.0002]
[1771154611910,0.00709819,70409.0,70398.0,0.0002]
[1771154612338,0.03209818,70409.0,70398.0,0.0002]
[1771154616181,0.03209818,70409.0,70391.0,0.8489]
[1771154616379,0.00709819,70409.0,70391.0,0.3805]
[1771154616607,0.02499999,70408.0,70391.0,0.3805]
[1771154617150,0.02499999,70408.0,70398.0,0.0002]
[1771154618219,4e-05,70400.0,70398.0,0.0002]
[1771154618374,0.02499999,70408.0,70398.0,0.0002]
[1771154620749,0.02499999,70406.0,70398.0,0.0002]
[1771154620957,0.02499999,70404.0,70398.0,0.0002]
[1771154621156,0.0087437,70403.0,70390.0,0.00024]
[1771154621371,0.02447926,70402.0,70390.0,0.00024]
[1771154621681,0.00316064,70402.0,70390.0,0.00024]
[1771154622025,0.13013817,70403.0,70390.0,0.00024]
[1771154623050,0.15356733,70403.0,70390.0,0.00024]
[1771154623263,0.02428545,70402.0,70390.0,0.00024]
[1771154623709,0.14478188,70402.0,70390.0,0.00024]
[1771154624162,0.14478188,70402.0,70392.0,0.0002]
[1771154625522,0.02428545,70401.0,70392.0,0.0002]
[1771154625729,0.01364925,70401.0,70392.0,0.0002]
[1771154626234,0.0004,70409.0,70392.0,0.0002]
[1771154626235,0.12049643,70400.0,70392.0,0.0002]
[1771154626468,0.14478188,70398.0,70392.0,0.0002]
[1771154628555,0.12049643,70398.0,70392.0,0.0002]
[1771154631850,0.02428545,70397.0,70383.0,0.0004652]
[1771154632003,0.12049643,70394.0,70383.0,0.0004652]
[1771154632367,0.14478188,70392.0,70383.0,0.0004652]
[1771154632564,0.12049643,70390.0,70373.0,0.02383753]
[1771154632764,0.14478188,70390.0,70373.0,0.02383753]
[1771154633556,0.14478188,70390.0,70384.0,0.0002]
[1771154634384,0.12049643,70390.0,70384.0,0.0002]
[1771154640796,0.11949643,70390.0,70384.0,0.0002]
[1771154640996,0.11949643,70390.0,70384.0,0.00025]
[1771154641315,0.14378188,70390.0,70384.0,0.00025]
[1771154642204,0.14378188,70390.0,70383.0,0.00017365]
[1771154643490,0.00709819,70389.0,70383.0,0.00017365]
[1771154643708,0.14378188,70390.0,70383.0,0.00017365]
[1771154643940,0.00224017,70389.0,70383.0,0.00017365]
[1771154647914,0.00224017,70389.0,70377.0,0.0002]
[1771154648195,0.12049643,70392.0,70382.0,0.00016]
[1771154648325,0.00224017,70391.0,70382.0,0.00016]
[1771154650370,0.00224017,70391.0,70373.0,0.05772835]
[1771154650575,0.00224017,70391.0,70374.0,0.02383753]
[1771154651176,0.00224017,70391.0,70373.0,0.06258747]
[1771154651177,0.00224017,70391.0,70376.0,0.02383753]
[1771154651383,0.00224017,70391.0,70378.0,0.02383753]
[1771154651590,0.00224017,70391.0,70380.0,0.02383753]
[1771154651767,0.00224017,70392.0,70381.0,0.00485856]
[1771154655261,0.00224017,70392.0,70380.0,0.02383753]
[1771154655423,0.00224017,70392.0,70381.0,0.00485799]
[1771154656023,0.00224017,70392.0,70381.0,0.00505799]
[1771154656231,0.00264017,70392.0,70381.0,0.00505799]
[1771154657712,0.00264017,70392.0,70381.0,0.0002]
[1771154658432,0.00264017,70392.0,70381.0,0.02366016]
[1771154658609,0.14708743,70392.0,70382.0,0.00485743]
[1771154658833,0.14708743,70392.0,70381.0,0.0002]
[1771154660220,0.11985617,70390.0,70381.0,0.0002]
[1771154660442,0.11434683,70389.0,70381.0,0.0002]
[1771154660663,0.13793606,70389.0,70381.0,0.0002]
[1771154661317,0.13793606,70389.0,70381.0,0.00012001]
[1771154664898,0.11434683,70389.0,70381.0,0.00012001]
[1771154665105,0.1434454,70387.0,70377.0,0.05109819]
[1771154665365,0.11985617,70385.0,70381.0,0.0002]
[1771154665581,0.1434454,70385.0,70381.0,0.0002]
[1771154666214,0.1434454,70385.0,70381.0,0.00063159]
[1771154666626,0.1434454,70385.0,70370.0,0.02350016]
[1771154666822,0.1434454,70385.0,70370.0,0.02362309]
[1771154667472,0.11985617,70385.0,70370.0,0.02362309]
[1771154667596,0.00264017,70389.0,70370.0,0.02362309]
[1771154667794,0.11985617,70388.0,70372.0,0.02346016]